bitfinex-derivatives/quotes_ETHF0:USTF0_20250926
["timestamp","ask_amount","ask_price","bid_price","bid_amount"]
[1758878982979,1.33235833,3929.8,3929.7,2.87836028]
[1758878983683,1.33235833,3929.8,3929.7,3.20836028]
[1758878984494,1.33235833,3929.8,3929.7,2.66766028]
[1758878985682,1.33235833,3929.8,3929.4,2.51766028]
[1758878985886,0.5742,3929.5,3929.4,2.73966028]
[1758878986087,1.91971833,3929.5,3929.4,2.99766028]
[1758878986287,1.46205833,3929.5,3929.4,2.99766028]
[1758878986489,1.46205833,3929.5,3929.4,3.20836028]
[1758878987182,1.33235833,3929.5,3929.4,3.20836028]
[1758878989795,1.46205833,3929.5,3929.4,0.4327]
[1758878989986,1.46205833,3929.5,3929.4,0.48]
[1758878991289,1.46205833,3929.5,3929.4,0.258]
[1758878996096,1.2384,3929.2,3929.1,0.222]
[1758878996297,1.23844,3928.9,3928.8,0.222]
[1758878996501,1.79936526,3928.9,3928.8,0.8877]
[1758878996994,0.2262,3928.5,3928.4,2.51766028]
[1758878997192,0.9104,3928.5,3928.4,1.0207]
[1758878997393,1.47099066,3928.5,3928.4,3.20836028]
[1758878999195,0.9104,3928.5,3928.4,3.20836028]
[1758879000106,1.4705009,3928.5,3928.4,2.95036028]
[1758879000301,1.4705009,3928.5,3928.0,0.7901]
[1758879000302,0.7443,3928.1,3928.0,0.7901]
[1758879000500,0.7443,3928.1,3928.0,1.0481]
[1758879000897,0.3152,3928.1,3928.0,1.1844]
[1758879001097,0.5256,3928.9,3928.8,0.4468]
[1758879001301,1.08559694,3928.9,3928.8,3.23576028]
[1758879001497,1.20207,3928.6,3928.5,2.74856028]
[1758879001701,1.76206694,3928.6,3928.5,3.00656028]
[1758879001903,1.76206694,3928.6,3928.5,3.23576028]
[1758879002794,0.4578,3928.3,3928.2,2.18766028]
[1758879003105,0.4578,3928.3,3928.2,0.4756]
[1758879003106,1.76197068,3928.3,3928.2,0.4756]
[1758879003300,0.45783,3928.1,3928.0,2.18766028]
[1758879003502,1.20213,3928.1,3928.0,2.66326028]
[1758879004206,1.76154425,3928.1,3928.0,0.2176]
[1758879004504,1.76154425,3928.1,3928.0,0.4756]
[1758879004704,1.76154425,3928.1,3928.0,0.258]
[1758879006002,1.76154425,3928.1,3928.0,0.4726]
[1758879006911,1.76154425,3928.1,3928.0,3.21726028]
[1758879009011,1.76154425,3928.1,3928.0,0.6978]
[1758879009506,1.76154425,3928.1,3928.0,1.0296]
[1758879009707,1.76154425,3928.1,3928.0,0.6978]
[1758879009903,1.76154425,3928.1,3928.0,0.4726]
[1758879011310,0.45786,3927.8,3927.7,2.18766028]
[1758879011510,1.23466,3927.8,3927.7,2.44566028]
[1758879011912,1.23466,3927.8,3927.7,2.66026028]
[1758879012112,1.23466,3927.8,3927.7,2.40226028]
[1758879012310,1.23466,3927.8,3927.7,2.99206028]
[1758879012613,1.23466,3927.8,3927.7,3.21726028]
[1758879013407,1.23466,3927.8,3927.7,0.2146]
[1758879013608,0.5464,3927.5,3927.4,0.7716]
[1758879013814,1.00428,3927.7,3927.6,2.95926028]
[1758879016113,1.00428,3927.7,3927.6,3.21726028]
[1758879016312,0.214,3927.7,3927.6,3.21726028]
[1758879016616,1.28089,3928.5,3927.7,0.7716]
[1758879016617,0.45787,3927.8,3927.7,0.7716]
[1758879017508,1.00427,3927.8,3927.7,0.7716]
[1758879019615,0.79027,3927.8,3927.7,0.7716]
[1758879019814,0.90219,3928.4,3928.3,0.2146]
[1758879020013,1.23459,3928.4,3928.3,3.21726028]
[1758879020214,1.79299926,3928.4,3928.3,3.21726028]
[1758879020514,1.23459,3928.4,3928.3,3.21726028]
[1758879020914,0.67178,3928.6,3928.5,0.9018]
[1758879021114,0.45776,3928.7,3928.6,0.5464]
[1758879021414,1.01624865,3928.7,3928.6,3.21726028]
[1758879021613,1.56264865,3928.7,3928.6,3.21726028]
[1758879023330,1.10488865,3928.7,3928.6,3.21726028]
[1758879023616,0.55848865,3928.7,3928.6,3.21726028]
[1758879023820,0.45768,3929.4,3929.3,0.4398]
[1758879024012,1.00408,3929.4,3929.3,3.21726028]
[1758879024212,1.5631122,3929.4,3929.3,3.21726028]
[1758879024409,1.1054322,3929.4,3929.3,3.21726028]
[1758879024607,0.5590322,3929.4,3929.3,3.21726028]
[1758879024817,1.10554916,3929.7,3929.6,0.7716]
[1758879025012,1.10554916,3929.7,3929.6,3.21726028]
[1758879025216,0.55914916,3929.7,3929.6,3.21726028]
[1758879025522,0.7768,3930.2,3930.1,0.7716]
[1758879025713,1.33603226,3930.2,3930.1,1.0296]
[1758879027332,0.89163226,3930.2,3930.1,1.0296]
[1758879027623,0.5464,3930.5,3930.4,0.7716]
[1758879027824,1.10514292,3930.5,3930.4,3.21726028]
[1758879028319,1.33554292,3930.5,3930.4,3.21726028]
[1758879029018,0.214,3930.5,3930.4,3.21726028]
[1758879029221,0.7768,3930.8,3930.7,0.7716]
[1758879029413,1.33476948,3930.8,3930.7,1.0296]
[1758879029614,0.7768,3930.8,3930.7,1.0296]
[1758879030324,0.23249956,3931.0,3930.9,0.7675]
[1758879030623,0.77939956,3931.0,3930.9,2.95516028]
[1758879030816,0.90679956,3931.0,3930.9,3.21316028]
[1758879031922,0.90679956,3931.0,3930.3,39.698]
[1758879031923,0.332,3930.9,3930.6,2.18766028]
[1758879032124,0.7574,3930.7,3930.6,2.40316028]
[1758879032321,0.7574,3930.7,3930.6,3.21316028]
[1758879033824,0.02199956,3931.0,3930.9,0.4575]
[1758879034032,0.02199956,3931.0,3930.9,3.67066028]
[1758879036322,0.02199956,3931.0,3930.9,5.85832056]
[1758879036518,0.77939956,3931.0,3930.9,3.21316028]
[1758879037823,0.56449956,3931.0,3930.9,3.21316028]
[1758879040025,0.23249956,3931.0,3930.9,3.21316028]
[1758879041123,0.56449956,3931.0,3930.9,3.21316028]
[1758879041626,0.90679956,3931.0,3930.9,0.2155]
[1758879041823,0.90679956,3931.0,3929.7,1.14411]
[1758879041824,0.45756,3930.4,3930.2,39.683]
[1758879042026,0.45756,3930.4,3929.5,0.1302]
[1758879042027,0.7896,3930.1,3930.0,0.2155]
[1758879042322,0.7896,3930.1,3929.8,2.18766028]
[1758879042323,0.88302,3929.9,3929.8,2.40316028]
[1758879042525,0.45766,3929.6,3929.5,0.3343]
[1758879042727,1.21506,3929.6,3929.5,3.3425864]
[1758879042927,0.7574,3929.2,3929.1,0.2155]
[1758879043125,0.7574,3929.2,3929.1,0.4735]
[1758879043430,0.58518,3928.5,3928.4,0.2155]
[1758879043728,1.01058,3928.5,3928.4,0.4735]
[1758879044125,0.1274,3929.0,3928.4,0.6912]
[1758879044330,1.34253,3929.0,3928.9,3.3425864]
[1758879044532,1.34253,3929.0,3928.9,3.6005864]
[1758879044737,1.34253,3929.0,3928.9,3.2662864]
[1758879045030,1.34253,3929.0,3928.9,0.258]
[1758879046128,1.34253,3929.0,3927.5,0.6855]
[1758879046129,0.4254,3927.6,3927.5,0.6855]
[1758879046326,0.4254,3927.6,3927.5,0.258]
[1758879046327,0.7574,3927.6,3927.5,0.258]
[1758879046638,0.7574,3927.6,3927.5,0.4735]
[1758879046830,0.7574,3927.6,3927.5,0.5498]
[1758879047029,0.7574,3927.6,3927.5,0.258]
[1758879052829,1.21535,3927.0,3926.9,0.7675]
[1758879053030,1.21535,3927.0,3926.9,1.0255]
[1758879053937,1.34275,3927.0,3926.9,0.4735]
[1758879055438,1.34275,3927.0,3926.9,0.2155]
[1758879055642,1.34275,3927.0,3926.9,0.8078]
[1758879056434,1.21535,3927.0,3926.9,0.8078]
[1758879056636,1.21535,3927.0,3926.9,1.0255]
[1758879059044,0.88335,3927.0,3926.9,1.0255]
[1758879059245,1.21535,3927.0,3926.9,0.7675]
[1758879059743,1.34275,3927.0,3926.9,0.6538]
[1758879060543,0.458,3926.6,3926.5,0.3559]
[1758879060845,1.2142,3926.6,3926.5,0.4782]
[1758879061040,1.2142,3926.6,3926.5,0.258]
[1758879061242,1.2142,3926.6,3926.5,1.0247]
[1758879061547,0.897,3926.6,3926.5,1.1618]
[1758879061935,0.5378,3927.4,3927.3,0.2202]
[1758879062145,1.21411,3927.4,3927.3,1.0247]
[1758879063043,0.2206,3926.7,3926.5,0.1371]
[1758879063347,1.21419,3926.7,3926.6,0.7667]
[1758879063538,1.21419,3926.7,3926.6,1.0187]
[1758879063746,0.45797,3926.9,3926.7,0.3219]
[1758879064046,1.27202,3928.0,3926.6,0.252]
[1758879064047,0.67851,3927.4,3927.3,0.7667]
[1758879064241,1.21411,3927.4,3927.3,0.7667]
[1758879064449,1.21411,3927.4,3927.3,0.258]
[1758879064639,1.21411,3927.4,3927.3,0.4782]
[1758879064948,1.21411,3927.4,3927.3,1.0176]
[1758879065533,1.21411,3927.4,3927.3,0.4782]
[1758879065742,1.21411,3927.4,3927.3,1.0179]
[1758879066845,0.4416,3927.1,3926.5,0.1371]
[1758879067044,1.00568,3926.8,3926.7,0.7671]
[1758879067350,0.89958,3926.8,3926.7,0.7671]
[1758879068048,0.4416,3926.8,3926.7,0.7671]
[1758879068246,0.2258,3926.8,3926.7,0.7671]
[1758879072051,0.7735,3926.8,3926.7,0.7671]
[1758879072346,1.33170017,3926.8,3926.7,0.8076]
[1758879072551,1.33170017,3926.8,3926.7,0.258]
[1758879072944,1.33170017,3926.8,3925.6,0.3222]
[1758879072945,0.45808,3925.9,3925.6,0.3222]
[1758879073143,1.23158,3925.9,3925.8,0.7671]
[1758879073342,1.79917616,3925.9,3925.8,0.7671]
[1758879073543,1.79917616,3925.9,3925.8,0.5496]
[1758879073750,1.79917616,3925.9,3925.8,0.8076]
[1758879074152,1.79917616,3925.9,3925.8,0.4854]
[1758879074450,0.4416,3925.0,3924.9,0.7671]
[1758879074645,0.1384,3925.5,3924.9,0.7671]
[1758879074646,0.4416,3925.5,3925.4,0.7671]
[1758879074948,0.79350888,3925.5,3925.4,1.0251]
[1758879075560,1.34120888,3925.5,3925.4,1.0251]
[1758879077949,1.34120888,3925.5,3925.4,0.7671]
[1758879078157,1.34120888,3925.5,3925.4,1.0251]
[1758879079845,1.34120888,3925.5,3925.4,0.8076]
[1758879080050,1.47960888,3925.5,3925.4,0.4854]
[1758879081160,1.34120888,3925.5,3925.4,0.7671]
[1758879081449,1.00930888,3925.5,3925.4,0.9061]
[1758879082251,1.34120888,3925.5,3925.4,1.0261]
[1758879082849,0.79350888,3925.5,3925.4,1.0261]
[1758879083050,0.56770888,3925.5,3925.4,1.0261]
[1758879083256,2.25685204,3926.4,3925.9,0.4449]
[1758879083257,2.27794873,3926.4,3925.9,0.4449]
[1758879083454,2.27794873,3926.4,3926.3,0.7671]
[1758879083455,0.68383,3926.4,3926.3,0.7671]
[1758879083653,1.47489399,3926.4,3926.3,0.7671]
[1758879084458,1.80679399,3926.4,3926.3,0.7671]
[1758879084757,1.80679399,3926.4,3926.0,2.70767817]
[1758879084758,1.23156,3926.1,3926.0,0.5496]
[1758879084955,0.3319,3925.8,3925.4,0.2274]
[1758879085255,0.45815,3925.3,3925.2,0.3222]
[1758879085460,0.57526399,3925.3,3925.2,3.60467817]
[1758879088563,0.57526399,3925.3,3925.2,1.0261]
[1758879089861,1.34876399,3925.3,3925.2,1.0261]
[1758879090657,1.34876399,3925.3,3925.2,0.7671]
[1758879090864,1.34876399,3925.3,3925.2,0.4864]
[1758879091163,1.34876399,3925.3,3925.2,0.822]
[1758879092864,1.34876399,3925.3,3925.2,1.0345]
[1758879094760,1.34876399,3925.3,3925.2,0.7755]
[1758879094962,1.34876399,3925.3,3925.2,1.0345]
[1758879099167,0.765,3924.7,3924.6,0.7781]
[1758879099359,1.34026399,3924.7,3924.6,0.7781]
[1758879099664,1.34026399,3924.7,3923.2,1.14598]
[1758879099665,0.88155,3924.5,3924.4,0.5656]
[1758879099866,1.45681399,3924.5,3924.4,0.8246]
[1758879100060,1.34026399,3924.5,3924.4,0.8246]
[1758879100764,1.34026399,3924.5,3924.4,0.5656]
[1758879100954,1.34026399,3924.5,3924.4,0.8246]
[1758879104362,0.57526399,3924.5,3924.4,1.0371]
[1758879104669,0.66766,3925.2,3925.1,0.7781]
[1758879104867,0.66766,3925.2,3925.1,1.0371]
[1758879104868,1.79568961,3925.2,3925.1,1.0371]
[1758879105065,0.8815,3924.9,3924.8,0.5656]
[1758879105258,0.88152,3924.7,3924.6,0.23]
[1758879105463,1.79574961,3924.7,3924.6,0.7176]
[1758879105768,1.79574961,3924.7,3924.6,0.8246]
[1758879105970,1.33752961,3924.7,3924.6,0.8246]
[1758879106362,1.33752961,3924.7,3924.6,1.0371]
[1758879107166,1.33752961,3924.7,3924.6,0.7781]
[1758879107469,1.33752961,3924.7,3924.6,0.489]
[1758879108666,1.33752961,3924.7,3924.6,0.8246]
[1758879110766,1.33752961,3924.7,3924.6,3.01815332]
[1758879111670,1.33752961,3924.7,3924.6,2.75915332]
[1758879111871,1.33752961,3924.7,3924.6,3.01815332]
[1758879112366,1.33752961,3924.7,3924.6,0.8246]
[1758879113265,1.33752961,3924.7,3924.6,0.5656]
[1758879113570,0.765,3924.4,3924.3,0.5656]
[1758879113870,1.33752961,3924.4,3924.3,1.0361]
[1758879114261,1.33752961,3924.4,3924.3,0.7781]
[1758879114461,1.33752961,3924.4,3924.3,1.0361]
[1758879115372,0.99582961,3924.4,3924.3,1.0361]
[1758879115772,0.57252961,3924.4,3924.3,1.0361]
[1758879116579,0.5512,3924.5,3924.4,0.5481]
[1758879116876,1.33717481,3924.5,3924.4,2.97165332]
[1758879117573,1.33717481,3924.5,3924.4,3.22965332]
[1758879117972,0.9002,3923.0,3922.9,1.50432275]
[1758879118271,0.45845,3922.8,3922.5,0.1277]
[1758879118469,0.45852,3922.1,3922.0,0.3577]
[1758879118666,0.45852,3922.1,3922.0,0.1277]
[1758879118667,4.38710664,3922.1,3922.0,0.1277]
[1758879118870,2.76541516,3922.1,3922.0,0.1277]
[1758879119470,2.76541516,3922.1,3921.0,0.1151]
[1758879119471,9.95896848,3922.1,3921.0,0.1151]
[1758879119673,2.19355332,3921.1,3921.0,0.3451]
[1758879119876,2.76541516,3921.1,3921.0,0.3811]
[1758879120072,2.76541516,3921.1,3921.0,0.1151]
[1758879120278,7.76541516,3921.1,3921.0,0.1151]
[1758879120578,0.57186184,3921.1,3921.0,0.40346528]
[1758879120874,0.45864,3921.2,3921.0,0.3544]
[1758879121077,0.57186184,3921.1,3921.0,0.3544]
[1758879121272,0.57186184,3921.1,3921.0,0.6204]
[1758879121671,0.57186184,3921.1,3921.0,0.8367]
[1758879121871,0.45854,3922.0,3921.0,1.29534]
[1758879122072,0.45854,3922.0,3921.9,0.2174]
[1758879122376,0.45857,3921.7,3921.6,0.2174]
[1758879122568,1.06795187,3921.9,3921.6,0.6326]
[1758879122768,0.60940187,3921.8,3921.7,0.3182]
[1758879123179,0.60940187,3921.8,3921.7,0.7519]
[1758879123774,0.45847,3922.6,3922.5,0.8889]
[1758879124181,1.06687404,3922.6,3922.5,0.8881]
[1758879124379,0.60840404,3922.6,3922.5,1.1541]
[1758879124680,7.81263763,3923.9,3923.6,0.3182]
[1758879124875,0.45834,3923.7,3923.5,0.137]
[1758879125073,0.45834,3923.7,3923.5,0.13312525]
[1758879125074,0.60835654,3923.6,3923.5,0.13312525]
[1758879125273,13.42099417,3923.6,3923.5,0.13312525]
[1758879125979,8.42099417,3923.6,3923.5,0.13312525]
[1758879126371,8.42099417,3923.6,3923.5,0.36382525]
[1758879126882,8.42099417,3923.6,3923.5,0.47452525]
[1758879127083,13.42099417,3923.6,3923.5,0.13312525]
[1758879127286,0.45839,3923.2,3923.1,0.3414]
[1758879127468,8.27102763,3923.2,3923.1,0.3414]
[1758879127673,13.87938417,3923.2,3923.1,0.3414]
[1758879130373,13.87938417,3923.2,3923.0,0.137]
[1758879130681,0.60835654,3923.1,3923.0,0.4784]
[1758879132374,0.60835654,3923.1,3923.0,0.7091]
[1758879132680,0.60835654,3923.1,3923.0,0.4784]
[1758879133075,8.89835654,3923.1,3923.0,0.4784]
[1758879134778,8.89835654,3923.1,3922.0,0.137]
[1758879134779,1.14605,3923.0,3922.0,0.137]
[1758879134981,1.14605,3923.0,3921.5,0.3638]
[1758879134982,0.45858,3921.6,3921.5,0.3638]
[1758879135283,1.06693654,3921.6,3921.5,0.7052]
[1758879135985,1.06693654,3921.6,3921.5,0.4745]
[1758879137286,0.4587,3920.6,3920.5,0.5831]
[1758879137481,0.657,3920.6,3920.5,0.8491]
[1758879137680,1.26535654,3920.6,3920.5,0.5831]
[1758879137880,1.46365654,3920.6,3920.5,0.5831]
[1758879139181,1.46365654,3920.6,3920.5,0.9245]
[1758879139182,0.60835654,3920.6,3920.5,0.9245]
[1758879139489,1.06704654,3920.7,3920.5,0.5831]
[1758879139689,1.00495654,3920.6,3920.5,0.5831]
[1758879139993,1.00495654,3920.6,3920.5,0.9245]
[1758879140280,1.00495654,3920.6,3920.5,0.7052]
[1758879141388,1.00495654,3920.6,3920.5,0.9245]
[1758879141389,0.80665654,3920.6,3920.5,0.9245]
[1758879141779,0.85536,3920.1,3920.0,0.7052]
[1758879141981,1.46371654,3920.1,3920.0,0.9245]
[1758879142378,0.60835654,3920.1,3920.0,0.9245]
[1758879142694,1.07476661,3920.2,3920.1,0.7914]
[1758879142989,0.61601536,3920.2,3920.1,1.0574]
[1758879143589,0.45876,3920.1,3920.0,0.1331]
[1758879143783,0.65712,3919.6,3919.5,0.9245]
[1758879143990,1.47143536,3919.6,3919.5,0.9245]
[1758879144492,1.47143536,3919.6,3919.0,0.1331]
[1758879144493,0.65717,3919.1,3919.0,0.9245]
[1758879144788,1.27318536,3919.1,3919.0,0.9245]
[1758879147085,1.47148536,3919.1,3919.0,0.6938]
[1758879147289,0.61601536,3919.1,3919.0,0.9245]
[1758879147484,2.25266191,3920.1,3919.9,0.45]
[1758879147679,0.45876,3920.1,3920.0,0.7914]
[1758879147885,1.0354,3919.7,3919.6,0.7914]
[1758879148393,0.6882,3919.7,3919.6,0.7914]
[1758879149589,1.2519,3919.7,3919.6,0.45]
[1758879149787,0.45884,3919.4,3919.3,0.3414]
[1758879149983,1.25194,3919.4,3919.3,0.5721]
[1758879150195,1.25194,3919.4,3919.3,0.2307]
[1758879150385,0.45886,3919.2,3919.1,0.266]
[1758879150686,1.01556,3919.2,3919.1,0.769]
[1758879151597,0.5567,3919.2,3919.1,0.769]
[1758879152093,0.2174,3919.2,3919.1,0.769]
[1758879152491,0.67624,3919.4,3919.3,0.769]
[1758879153389,1.01554,3919.4,3919.3,0.769]
[1758879153787,0.45883,3919.5,3919.4,0.3257]
[1758879153988,0.45883,3919.5,3919.4,0.769]
[1758879155587,0.5567,3920.0,3919.9,0.769]
[1758879155790,1.01547,3920.0,3919.9,0.769]
[1758879156395,0.45876,3920.1,3920.0,0.3257]
[1758879156598,0.67614,3920.3,3920.2,0.5362]
[1758879156902,0.2174,3920.3,3920.2,0.769]
[1758879157087,0.45872,3920.4,3920.2,0.4433]
[1758879157293,0.3393,3920.5,3920.4,0.4433]
[1758879157501,0.4587,3920.6,3920.4,0.75316796]
[1758879157801,0.5567,3920.5,3920.4,0.75316796]
[1758879159587,1.16576919,3920.5,3920.4,0.75316796]
[1758879159791,1.16576919,3920.5,3920.4,0.42746796]
[1758879159999,1.16576919,3920.5,3920.4,0.75316796]
[1758879160394,1.29336919,3920.5,3920.4,0.42746796]
[1758879160795,1.51936919,3920.5,3920.4,0.42746796]
[1758879161900,0.7827,3920.2,3920.1,0.4988]
[1758879162094,1.39176919,3920.2,3920.1,0.4988]
[1758879164098,0.60906919,3920.2,3920.1,1.035]
[1758879164403,0.60906919,3920.2,3920.1,6.035]
[1758879165605,0.60906919,3920.2,3920.1,0.769]
[1758879165806,0.60906919,3920.2,3920.1,1.034]
[1758879166004,0.94836919,3920.2,3920.1,1.034]
[1758879166199,1.16576919,3920.2,3920.1,0.769]
[1758879166506,1.16576919,3920.2,3920.1,1.034]
[1758879167199,0.60906919,3920.2,3920.1,1.034]
[1758879167904,0.60906919,3920.2,3920.1,0.769]
[1758879168104,0.60906919,3920.2,3920.1,1.034]
[1758879168502,1.16576919,3920.2,3920.1,1.034]
[1758879168702,1.16576919,3920.2,3920.1,0.4433]
[1758879168909,1.39176919,3920.2,3920.1,0.265]
[1758879169104,0.4434,3919.9,3919.8,0.69158]
[1758879169308,1.39176919,3919.9,3919.8,1.16708]
[1758879169701,1.39176919,3919.9,3919.8,1.49278]
[1758879171409,1.16576919,3919.9,3919.8,1.49278]
[1758879172409,1.16576919,3919.9,3919.8,1.16708]
[1758879172610,1.39176919,3919.9,3919.8,0.4433]
[1758879172810,1.39176919,3919.9,3919.8,0.7083]
[1758879173509,1.85054919,3919.9,3919.8,0.7083]
[1758879174802,1.85054919,3919.9,3919.8,0.2328]
[1758879175010,1.85054919,3919.9,3919.8,0.265]
[1758879175805,1.85054919,3919.9,3918.5,0.3257]
[1758879175806,1.39176919,3919.9,3918.5,0.3257]
[1758879176007,1.39176919,3919.9,3918.1,0.20006904]
[1758879176008,0.4434,3918.9,3918.8,0.4433]
[1758879176210,1.39176919,3918.9,3918.8,0.4433]
[1758879177311,1.39176919,3918.9,3918.8,0.7083]
[1758879178812,0.60906919,3918.9,3918.8,1.034]
[1758879179216,0.7827,3918.8,3918.7,0.4433]
[1758879179417,1.39176919,3918.8,3918.7,0.7083]
[1758879179913,1.39176919,3918.8,3918.7,0.265]
[1758879180910,0.45896,3918.5,3918.1,0.3257]
[1758879181116,1.81982919,3918.4,3918.3,0.4588]
[1758879181311,1.36086919,3918.4,3918.3,0.4588]
[1758879181613,0.327,3919.4,3919.3,0.801]
[1758879181819,1.14691,3920.1,3919.3,0.801]
[1758879181820,0.45879,3919.8,3919.6,0.801]
[1758879182022,0.327,3919.7,3919.6,0.801]
[1758879182220,0.5399,3919.7,3919.6,0.801]
[1758879183123,0.7518,3919.8,3919.7,0.2273]
[1758879183322,0.7518,3919.8,3919.7,0.265]
[1758879183519,0.2129,3919.1,3919.0,39.795]
[1758879183724,0.5399,3919.1,3919.0,40.06]
[1758879183919,0.7518,3919.1,3919.0,0.4588]
[1758879184123,0.4629,3919.0,3918.9,0.4588]
[1758879184315,0.67176,3919.3,3919.2,0.4588]
[1758879184515,0.99876,3919.3,3919.2,0.4588]
[1758879184716,1.21066,3919.3,3919.2,0.4588]
[1758879185423,0.7518,3919.3,3919.2,0.4588]
[1758879186422,0.327,3919.3,3919.2,0.8024]
[1758879186623,0.6922,3919.5,3919.4,0.8035]
[1758879186927,0.9048,3919.5,3919.4,0.4922]
[1758879187726,0.9048,3919.5,3919.4,0.7249]
[1758879188428,0.3321,3919.5,3919.4,1.0685]
[1758879188633,0.58638,3920.0,3919.4,1.0685]
[1758879188634,0.5644,3920.0,3919.9,0.2272]
[1758879188929,0.5644,3920.0,3919.9,0.7249]
[1758879189136,0.8965,3920.0,3919.9,0.7249]
[1758879190230,0.4588,3919.8,3919.4,0.3436]
[1758879190430,0.5563,3919.3,3919.2,0.2272]
[1758879190739,0.5563,3919.3,3919.2,1.0685]
[1758879191139,0.5563,3919.3,3919.2,0.7249]
[1758879191338,0.7689,3919.3,3918.8,0.3436]
[1758879191636,0.9025,3919.0,3918.9,0.7249]
[1758879191829,0.9025,3919.0,3918.9,0.4599]
[1758879192035,0.7689,3918.9,3918.8,0.2272]
[1758879192230,0.5563,3918.4,3918.3,39.796]
[1758879192429,0.5563,3918.4,3918.3,40.51996]
[1758879192632,0.4589,3918.9,3918.4,0.45895]
[1758879192832,0.7689,3918.8,3918.7,0.2272]
[1758879193625,1.36122549,3918.8,3918.7,0.4599]
[1758879193833,0.59232549,3918.8,3918.7,0.8035]
[1758879194139,1.02923,3919.5,3919.4,0.2272]
[1758879194438,1.62151212,3919.5,3919.4,0.4922]
[1758879194739,1.95361212,3919.5,3919.4,0.4922]
[1758879196033,1.95361212,3919.5,3919.4,1.18374]
[1758879196034,1.49478212,3919.5,3919.4,1.18374]
[1758879196234,1.49478212,3919.5,3919.4,1.52734]
[1758879197039,1.49478212,3919.5,3919.4,0.265]
[1758879197232,1.49478212,3919.5,3918.6,1.14734]
[1758879197233,0.4368,3919.3,3918.3,0.3436]
[1758879197435,0.59228212,3919.2,3918.6,0.45893]
[1758879197625,0.9025,3919.0,3918.9,0.2272]
[1758879197831,1.49478212,3919.0,3918.9,0.2272]
[1758879198536,0.4657,3918.5,3918.4,39.797]
[1758879198842,0.4657,3918.5,3918.1,40.1406]
[1758879198843,0.45897,3918.3,3918.1,40.1406]
[1758879199139,1.22787,3918.3,3918.2,0.4599]
[1758879199330,1.22787,3918.3,3918.2,0.4922]
[1758879199532,1.82070545,3918.3,3918.2,0.4922]
[1758879200137,1.82070545,3918.3,3917.8,0.3436]
[1758879200138,1.3615,3918.0,3917.9,40.2824242]
[1758879200440,1.3615,3918.0,3917.9,0.0255242]
[1758879200441,1.95409419,3918.0,3917.9,0.0255242]
[1758879201140,1.95409419,3918.0,3917.8,0.265]
[1758879201141,0.45908,3917.4,3916.8,0.3436]
[1758879201335,1.49509419,3918.0,3917.0,39.798]
[1758879201336,0.7689,3917.1,3917.0,39.798]
[1758879201642,0.7689,3917.1,3917.0,40.063]
[1758879203037,0.7689,3917.1,3916.5,0.3436]
[1758879203240,0.3321,3917.0,3916.9,0.8035]
[1758879203437,0.5563,3917.0,3916.9,0.8035]
[1758879203634,0.9025,3917.0,3916.9,0.4599]
[1758879204343,1.02953,3917.0,3916.9,0.265]
[1758879204542,1.36163,3917.0,3916.9,0.265]
[1758879205044,1.36163,3917.0,3916.9,0.4922]
[1758879205545,0.9025,3917.0,3916.9,0.4922]
[1758879205740,0.5563,3917.0,3916.9,1.52763]
[1758879206042,0.3321,3917.4,3917.1,0.2272]
[1758879206239,0.9025,3917.0,3916.9,0.4599]
[1758879206443,0.5563,3917.0,3916.9,1.52763]
[1758879206640,0.9025,3917.0,3916.9,0.91903]
[1758879206845,0.9025,3917.0,3916.9,0.7249]
[1758879208149,0.9025,3917.0,3916.9,0.95133]
[1758879208347,0.9025,3917.0,3916.9,0.4922]
[1758879208539,0.9025,3917.0,3916.9,0.7249]
[1758879208740,0.9025,3917.0,3916.9,1.0685]
[1758879210042,0.9025,3917.0,3916.9,0.7249]
[1758879211348,0.9025,3917.0,3916.9,1.0725]
[1758879211847,0.9025,3917.0,3916.9,0.8075]
[1758879212045,0.5563,3917.0,3916.9,1.0725]
[1758879212240,0.1336,3918.0,3916.9,1.0725]
[1758879212241,0.1336,3918.0,3917.5,0.3476]
[1758879212436,0.82361,3918.0,3917.9,0.4485]
[1758879212848,1.17031,3918.0,3917.9,0.4485]
[1758879213048,0.9441,3918.0,3917.9,0.4485]
[1758879214150,0.3467,3918.8,3918.7,0.7961]
[1758879214620,0.5777,3918.8,3918.7,1.0611]
[1758879215150,0.1299,3919.0,3918.8,0.45891]
[1758879215354,0.5777,3919.5,3919.4,0.90734]
[1758879215542,0.8105,3919.9,3919.8,0.2312]
[1758879216052,0.8105,3919.9,3917.6,40.1586]
[1758879216053,0.1299,3919.0,3917.6,40.1586]
[1758879216259,0.1299,3918.5,3917.7,0.266]
[1758879216455,0.3467,3918.4,3917.7,0.6136]
[1758879216658,0.45898,3918.3,3917.7,1.07263]
[1758879217452,0.80569,3918.2,3917.8,0.3476]
[1758879217759,0.3467,3918.0,3917.9,0.267]
[1758879218259,0.3467,3918.0,3917.7,39.809]
[1758879218260,0.80572,3917.9,3917.7,39.809]
[1758879218454,0.3467,3917.9,3917.8,0.267]
[1758879218754,0.3467,3917.9,3917.8,0.6146]
[1758879219652,0.3467,3917.8,3917.6,0.3476]
[1758879219846,0.3467,3917.8,3917.7,40.075]
[1758879220451,0.3467,3917.8,3917.7,40.4226]
[1758879221260,0.3467,3918.4,3917.7,40.4226]
[1758879221459,0.459,3918.1,3917.7,40.53403]
[1758879221662,0.3467,3917.9,3917.8,0.3476]
[1758879221850,0.3467,3917.9,3917.8,0.266]
[1758879222860,0.3467,3917.9,3917.8,0.6136]
[1758879223465,0.8105,3917.9,3917.8,0.4972]
[1758879223760,0.8105,3917.9,3917.8,0.7145]
[1758879224564,0.5777,3917.9,3917.8,1.0621]
[1758879225257,0.5777,3918.4,3918.3,0.7961]
[1758879225452,0.8056,3918.9,3918.3,1.0621]